[Event "Late-Titled-Tuesday-Blitz-October-24-2023"]
[Site "Chess.com"]
[Date "2023.10.24"]
[Round "1"]
[White "Semetey"]
[Black "Jospem"]
[Result "0-1"]
[WhiteElo "2520"]
[BlackElo "3079"]
[TimeControl "180+1"]
[EndTime "14:07:13 PDT"]
[Termination "Jospem won on time"]

1. a3 {[%clk 0:02:55.7]} 1... d5 {[%clk 0:03:00]} 2. d4 {[%clk 0:02:53.1]} 2...
Nf6 {[%clk 0:03:00.4]} 3. Nc3 {[%clk 0:02:52.8]} 3... Bf5 {[%clk 0:03:00.5]} 4.
Bf4 {[%clk 0:02:52.8]} 4... a6 {[%clk 0:03:00.4]} 5. e3 {[%clk 0:02:52.6]} 5...
e6 {[%clk 0:03:00.8]} 6. f3 {[%clk 0:02:52]} 6... h5 {[%clk 0:02:59.2]} 7. Bd3
{[%clk 0:02:50.1]} 7... Bxd3 {[%clk 0:02:59.5]} 8. Qxd3 {[%clk 0:02:49.5]} 8...
Nbd7 {[%clk 0:02:58.9]} 9. Nge2 {[%clk 0:02:49.3]} 9... c5 {[%clk 0:02:59.3]}
10. O-O {[%clk 0:02:40.8]} 10... Be7 {[%clk 0:02:59.1]} 11. Kh1 {[%clk
0:02:40.2]} 11... O-O {[%clk 0:02:58.6]} 12. Rad1 {[%clk 0:02:21.4]} 12... Qb6
{[%clk 0:02:57.5]} 13. Na4 {[%clk 0:02:13.5]} 13... Qc6 {[%clk 0:02:53.2]} 14.
Nac3 {[%clk 0:02:12.5]} 14... Rac8 {[%clk 0:02:52.4]} 15. e4 {[%clk 0:02:09.8]}
15... Rfe8 {[%clk 0:02:25.7]} 16. e5 {[%clk 0:01:29.4]} 16... Nh7 {[%clk
0:02:25.4]} 17. Be3 {[%clk 0:01:26.5]} 17... cxd4 {[%clk 0:02:23.9]} 18. Nxd4
{[%clk 0:01:26.1]} 18... Qc4 {[%clk 0:02:24.1]} 19. f4 {[%clk 0:01:20.1]} 19...
Qxd3 {[%clk 0:02:22.8]} 20. cxd3 {[%clk 0:01:20.5]} 20... Nhf8 {[%clk
0:02:21.2]} 21. Rc1 {[%clk 0:01:05.2]} 21... Nc5 {[%clk 0:02:20.4]} 22. Rfd1
{[%clk 0:01:05.1]} 22... g6 {[%clk 0:02:20.6]} 23. b4 {[%clk 0:01:03.1]} 23...
Ncd7 {[%clk 0:02:21.2]} 24. Nb3 {[%clk 0:00:59.4]} 24... f6 {[%clk 0:02:08.8]}
25. Bd4 {[%clk 0:00:56.1]} 25... fxe5 {[%clk 0:02:07.6]} 26. fxe5 {[%clk
0:00:56.7]} 26... g5 {[%clk 0:02:06.7]} 27. Na4 {[%clk 0:00:47.2]} 27... Ng6
{[%clk 0:02:03.9]} 28. Nac5 {[%clk 0:00:43.6]} 28... Bxc5 {[%clk 0:02:02.1]} 29.
Nxc5 {[%clk 0:00:43.5]} 29... Nxc5 {[%clk 0:02:02.5]} 30. bxc5 {[%clk
0:00:42.2]} 30... Rf8 {[%clk 0:02:00.2]} 31. Rb1 {[%clk 0:00:40.2]} 31... Rf7
{[%clk 0:01:56.1]} 32. g3 {[%clk 0:00:36.5]} 32... h4 {[%clk 0:01:46.3]} 33. Kg2
{[%clk 0:00:36.6]} 33... g4 {[%clk 0:01:45.7]} 34. Rb2 {[%clk 0:00:34.7]} 34...
h3+ {[%clk 0:01:45.8]} 35. Kg1 {[%clk 0:00:34.9]} 35... Rcc7 {[%clk 0:01:39.6]}
36. Rf2 {[%clk 0:00:30.8]} 36... Ne7 {[%clk 0:01:31.6]} 37. Rxf7 {[%clk
0:00:22.1]} 37... Kxf7 {[%clk 0:01:32.5]} 38. Bf2 {[%clk 0:00:19.7]} 38... Nc6
{[%clk 0:01:30.6]} 39. d4 {[%clk 0:00:19.7]} 39... Kg6 {[%clk 0:01:31.2]} 40.
Kf1 {[%clk 0:00:18.5]} 40... Rf7 {[%clk 0:01:31.7]} 41. Ke2 {[%clk 0:00:19.4]}
41... Rf3 {[%clk 0:01:29.1]} 42. Be3 {[%clk 0:00:19.6]} 42... Kf5 {[%clk
0:01:23.3]} 43. Kd3 {[%clk 0:00:19.9]} 43... Na5 {[%clk 0:01:21]} 44. Ke2 {[%clk
0:00:16.3]} 44... Nc4 {[%clk 0:01:20.2]} 45. Bc1 {[%clk 0:00:15.5]} 45... Ke4
{[%clk 0:01:19.3]} 46. a4 {[%clk 0:00:07]} 46... Rc3 {[%clk 0:01:14.1]} 47. Re1
{[%clk 0:00:06.7]} 47... Kxd4 {[%clk 0:01:10.2]} 48. Kf2 {[%clk 0:00:07]} 48...
Kxc5 {[%clk 0:01:10.5]} 49. Bf4 {[%clk 0:00:06.2]} 49... d4 {[%clk 0:01:10.9]}
50. Rb1 {[%clk 0:00:06]} 50... b5 {[%clk 0:01:11.3]} 51. axb5 {[%clk 0:00:05.8]}
51... axb5 {[%clk 0:01:12.2]} 52. Ra1 {[%clk 0:00:05.6]} 52... Ra3 {[%clk
0:01:12.7]} 53. Rc1 {[%clk 0:00:05.3]} 53... Kd5 {[%clk 0:01:13]} 54. Rd1 {[%clk
0:00:04.9]} 54... d3 {[%clk 0:01:13.7]} 55. Rb1 {[%clk 0:00:04.9]} 55... Ra2+
{[%clk 0:01:12]} 56. Kg1 {[%clk 0:00:04.6]} 56... Rb2 {[%clk 0:01:12.4]} 57. Rd1
{[%clk 0:00:03.9]} 57... Kd4 {[%clk 0:01:12.5]} 58. Kh1 {[%clk 0:00:03.2]} 58...
b4 {[%clk 0:01:13.1]} 59. Bh6 {[%clk 0:00:02.4]} 59... b3 {[%clk 0:01:13.3]} 60.
Bf8 {[%clk 0:00:02.4]} 60... Rc2 {[%clk 0:01:13.4]} 61. Bb4 {[%clk 0:00:01.9]}
61... b2 {[%clk 0:01:13.7]} 0-1

[Event "Late-Titled-Tuesday-Blitz-October-24-2023"]
[Site "Chess.com"]
[Date "2023.10.24"]
[Round "1"]
[White "jcibarra"]
[Black "whiteglovethief"]
[Result "1-0"]
[WhiteElo "2919"]
[BlackElo "2509"]
[TimeControl "180+1"]
[EndTime "14:07:13 PDT"]
[Termination "jcibarra won by resignation"]

1. e4 {[%clk 0:02:59.8]} 1... e6 {[%clk 0:02:59.8]} 2. d4 {[%clk 0:02:59.4]}
2... d5 {[%clk 0:03:00.4]} 3. Nc3 {[%clk 0:02:59.7]} 3... Bb4 {[%clk 0:02:59.7]}
4. e5 {[%clk 0:02:58.6]} 4... c5 {[%clk 0:02:59]} 5. Qg4 {[%clk 0:02:58.3]} 5...
Ne7 {[%clk 0:02:58]} 6. dxc5 {[%clk 0:02:57.1]} 6... Nbc6 {[%clk 0:02:58.1]} 7.
Bd2 {[%clk 0:02:57]} 7... Bxc5 {[%clk 0:02:44.3]} 8. Nf3 {[%clk 0:02:56.4]} 8...
Ng6 {[%clk 0:02:34]} 9. Qh5 {[%clk 0:02:53.1]} 9... Bd7 {[%clk 0:02:11.5]} 10.
O-O-O {[%clk 0:02:51.9]} 10... h6 {[%clk 0:01:39.5]} 11. Bd3 {[%clk 0:02:44.6]}
11... Nce7 {[%clk 0:01:38.9]} 12. Kb1 {[%clk 0:02:36.3]} 12... a6 {[%clk
0:01:28.9]} 13. Be3 {[%clk 0:02:33.2]} 13... Qa5 {[%clk 0:01:05.7]} 14. Ne2
{[%clk 0:02:24.2]} 14... Bxe3 {[%clk 0:01:00.4]} 15. fxe3 {[%clk 0:02:23.5]}
15... O-O-O {[%clk 0:01:00.4]} 16. Rhf1 {[%clk 0:02:19.3]} 16... Rhf8 {[%clk
0:00:58.2]} 17. Ned4 {[%clk 0:02:07.8]} 17... Kb8 {[%clk 0:00:49.7]} 18. Qg4
{[%clk 0:02:05.9]} 18... Rc8 {[%clk 0:00:41.5]} 19. h4 {[%clk 0:02:04.1]} 19...
Nc6 {[%clk 0:00:25.4]} 20. Bxg6 {[%clk 0:01:44.7]} 20... fxg6 {[%clk 0:00:23.9]}
21. Qxg6 {[%clk 0:01:45.6]} 21... Rxf3 {[%clk 0:00:19.5]} 22. gxf3 {[%clk
0:01:28.3]} 22... Nxe5 {[%clk 0:00:11.6]} 23. Qxg7 {[%clk 0:01:26.7]} 23... Qc7
{[%clk 0:00:03.9]} 24. b3 {[%clk 0:01:03.4]} 24... h5 {[%clk 0:00:02.4]} 25. Rf2
{[%clk 0:00:50.6]} 25... Ka7 {[%clk 0:00:02.9]} 26. Rfd2 {[%clk 0:00:43.3]}
26... Qd6 {[%clk 0:00:03.3]} 27. Qg1 {[%clk 0:00:37]} 27... Bc6 {[%clk
0:00:02.3]} 28. e4 {[%clk 0:00:36.8]} 28... Ka8 {[%clk 0:00:02.2]} 29. exd5
{[%clk 0:00:33.6]} 29... exd5 {[%clk 0:00:03.1]} 30. Re2 {[%clk 0:00:24.1]}
30... Qf6 {[%clk 0:00:03.2]} 31. Qg5 {[%clk 0:00:23.2]} 31... Qxg5 {[%clk
0:00:03.6]} 32. hxg5 {[%clk 0:00:23.5]} 32... Ng6 {[%clk 0:00:04.4]} 33. Re6
{[%clk 0:00:21.3]} 33... Nf4 {[%clk 0:00:04.7]} 34. Rf6 {[%clk 0:00:20.2]} 34...
Ng2 {[%clk 0:00:05]} 35. g6 {[%clk 0:00:18.8]} 35... Rg8 {[%clk 0:00:02.8]} 36.
Rg1 {[%clk 0:00:17.6]} 36... Ne3 {[%clk 0:00:03.2]} 37. g7 {[%clk 0:00:17.8]}
37... Ka7 {[%clk 0:00:03]} 38. Rf8 {[%clk 0:00:17.7]} 1-0

[Event "Late-Titled-Tuesday-Blitz-October-24-2023"]
[Site "Chess.com"]
[Date "2023.10.24"]
[Round "1"]
[White "tylityli"]
[Black "TanitoluwaAps116"]
[Result "0-1"]
[WhiteElo "2331"]
[BlackElo "2639"]
[TimeControl "180+1"]
[EndTime "14:07:18 PDT"]
[Termination "TanitoluwaAps116 won on time"]

1. d4 {[%clk 0:02:56.5]} 1... Nf6 {[%clk 0:02:06.3]} 2. c4 {[%clk 0:02:57.4]}
2... e6 {[%clk 0:02:03.2]} 3. Nc3 {[%clk 0:02:57.1]} 3... Bb4 {[%clk 0:02:01.6]}
4. e3 {[%clk 0:02:57.1]} 4... O-O {[%clk 0:02:00.7]} 5. Ne2 {[%clk 0:02:58]}
5... c6 {[%clk 0:01:53.5]} 6. a3 {[%clk 0:02:57.4]} 6... Ba5 {[%clk 0:01:53.1]}
7. b4 {[%clk 0:02:56.1]} 7... Bc7 {[%clk 0:01:53.2]} 8. f4 {[%clk 0:02:55.6]}
8... d5 {[%clk 0:01:51.9]} 9. c5 {[%clk 0:02:54.4]} 9... Nfd7 {[%clk 0:01:51.3]}
10. Ng3 {[%clk 0:02:51.8]} 10... f6 {[%clk 0:01:45.9]} 11. Bd3 {[%clk
0:02:41.5]} 11... e5 {[%clk 0:01:38.4]} 12. O-O {[%clk 0:02:39.9]} 12... e4
{[%clk 0:01:31.6]} 13. Be2 {[%clk 0:02:30.6]} 13... f5 {[%clk 0:01:29.7]} 14. b5
{[%clk 0:02:24.3]} 14... Nf6 {[%clk 0:01:22.8]} 15. Bd2 {[%clk 0:02:22.1]} 15...
h6 {[%clk 0:01:16.1]} 16. a4 {[%clk 0:02:11.4]} 16... Nbd7 {[%clk 0:01:08.9]}
17. a5 {[%clk 0:01:59]} 17... a6 {[%clk 0:00:50.9]} 18. b6 {[%clk 0:01:53.6]}
18... Bb8 {[%clk 0:00:51.1]} 19. Nxf5 {[%clk 0:01:44.5]} 19... Nxc5 {[%clk
0:00:49.8]} 20. Nxh6+ {[%clk 0:01:39.4]} 20... gxh6 {[%clk 0:00:50.7]} 21. dxc5
{[%clk 0:01:39.3]} 21... d4 {[%clk 0:00:48.1]} 22. Bc4+ {[%clk 0:01:36.3]} 22...
Kh7 {[%clk 0:00:41.5]} 23. Ne2 {[%clk 0:01:33.9]} 23... d3 {[%clk 0:00:24.7]}
24. Nd4 {[%clk 0:01:24.3]} 24... Bg4 {[%clk 0:00:20.5]} 25. Qe1 {[%clk
0:01:20.2]} 25... Nd5 {[%clk 0:00:20.4]} 26. h3 {[%clk 0:00:50.9]} 26... Bd7
{[%clk 0:00:19.6]} 27. Qf2 {[%clk 0:00:27.7]} 27... Qf6 {[%clk 0:00:17.7]} 28.
Kh1 {[%clk 0:00:22.2]} 28... Rg8 {[%clk 0:00:16.1]} 29. g4 {[%clk 0:00:20.5]}
29... Bxg4 {[%clk 0:00:04.1]} 30. hxg4 {[%clk 0:00:12.1]} 30... Rxg4 {[%clk
0:00:05]} 31. Rg1 {[%clk 0:00:02.9]} 31... Rh4+ {[%clk 0:00:05]} 32. Kg2 {[%clk
0:00:03.3]} 32... Bxf4 {[%clk 0:00:04]} 33. Kf1 {[%clk 0:00:01.7]} 33... Rf8
{[%clk 0:00:03.2]} 0-1

[Event "Late-Titled-Tuesday-Blitz-October-24-2023"]
[Site "Chess.com"]
[Date "2023.10.24"]
[Round "1"]
[White "Zhbugnoimt"]
[Black "lluiss"]
[Result "0-1"]
[WhiteElo "2556"]
[BlackElo "2198"]
[TimeControl "180+1"]
[EndTime "14:07:18 PDT"]
[Termination "lluiss won by resignation"]

1. e4 {[%clk 0:00:41.6]} 1... c5 {[%clk 0:02:55]} 2. Nf3 {[%clk 0:00:41.4]} 2...
d6 {[%clk 0:02:53.8]} 3. d4 {[%clk 0:00:42]} 3... cxd4 {[%clk 0:02:53.3]} 4.
Nxd4 {[%clk 0:00:42.9]} 4... Nf6 {[%clk 0:02:53.1]} 5. Nc3 {[%clk 0:00:43.6]}
5... g6 {[%clk 0:02:52.9]} 6. Be3 {[%clk 0:00:43.6]} 6... Bg7 {[%clk 0:02:52.9]}
7. f3 {[%clk 0:00:44]} 7... O-O {[%clk 0:02:51.7]} 8. Qd2 {[%clk 0:00:44.6]}
8... Nc6 {[%clk 0:02:51.8]} 9. O-O-O {[%clk 0:00:45.4]} 9... Nxd4 {[%clk
0:02:51.9]} 10. Bxd4 {[%clk 0:00:45.5]} 10... Be6 {[%clk 0:02:52.3]} 11. h4
{[%clk 0:00:42.8]} 11... Qa5 {[%clk 0:02:51.6]} 12. a3 {[%clk 0:00:42.4]} 12...
Rfc8 {[%clk 0:02:49.5]} 13. h5 {[%clk 0:00:42.5]} 13... Bc4 {[%clk 0:02:44.7]}
14. g4 {[%clk 0:00:38]} 14... Bxf1 {[%clk 0:02:35.9]} 15. Rdxf1 {[%clk 0:00:38]}
15... Rc4 {[%clk 0:02:36]} 16. hxg6 {[%clk 0:00:33.5]} 16... hxg6 {[%clk
0:02:34.9]} 17. g5 {[%clk 0:00:33.3]} 17... Rxd4 {[%clk 0:01:39]} 18. Qxd4
{[%clk 0:00:33]} 18... Nh5 {[%clk 0:01:39.1]} 19. Qb4 {[%clk 0:00:13.3]} 19...
Qxb4 {[%clk 0:01:34.1]} 20. axb4 {[%clk 0:00:14.2]} 20... Ng3 {[%clk 0:01:34.2]}
21. Nd5 {[%clk 0:00:15]} 21... Nxf1 {[%clk 0:01:22.8]} 22. Rxf1 {[%clk 0:00:14]}
22... Kf8 {[%clk 0:01:20.9]} 23. f4 {[%clk 0:00:14.1]} 23... e6 {[%clk
0:01:16.6]} 24. Nf6 {[%clk 0:00:14]} 24... Ke7 {[%clk 0:01:11.9]} 25. e5 {[%clk
0:00:14.5]} 25... Bxf6 {[%clk 0:01:05]} 26. gxf6+ {[%clk 0:00:14.1]} 26... Kd7
{[%clk 0:01:03.3]} 27. Rd1 {[%clk 0:00:14.4]} 27... d5 {[%clk 0:01:02.3]} 28.
Rh1 {[%clk 0:00:15]} 28... Kc6 {[%clk 0:00:55.4]} 29. Rh7 {[%clk 0:00:15.5]}
29... Rf8 {[%clk 0:00:55.4]} 30. Kd2 {[%clk 0:00:15.9]} 30... d4 {[%clk
0:00:55.6]} 31. Kd3 {[%clk 0:00:16.2]} 31... Kd5 {[%clk 0:00:55.8]} 32. c4+
{[%clk 0:00:16.7]} 32... dxc3 {[%clk 0:00:55.3]} 33. bxc3 {[%clk 0:00:17.6]}
33... b5 {[%clk 0:00:54.7]} 34. Rh1 {[%clk 0:00:17.9]} 34... g5 {[%clk
0:00:48.7]} 35. Ra1 {[%clk 0:00:17.6]} 35... gxf4 {[%clk 0:00:47.2]} 36. Rxa7
{[%clk 0:00:18.3]} 36... Kxe5 {[%clk 0:00:47.2]} 37. Rb7 {[%clk 0:00:19]} 37...
Kxf6 {[%clk 0:00:40.1]} 38. Rxb5 {[%clk 0:00:19.5]} 38... e5 {[%clk 0:00:39]}
39. Ke4 {[%clk 0:00:19.8]} 39... Re8 {[%clk 0:00:38]} 40. c4 {[%clk 0:00:18.2]}
40... Kg5 {[%clk 0:00:38]} 41. Rb7 {[%clk 0:00:17.2]} 41... f5+ {[%clk 0:00:37]}
42. Kd5 {[%clk 0:00:16.2]} 42... f3 {[%clk 0:00:34.1]} 43. Rg7+ {[%clk
0:00:16.8]} 43... Kf4 {[%clk 0:00:34.1]} 44. Rg1 {[%clk 0:00:17.7]} 44... f2
{[%clk 0:00:33.9]} 45. Rf1 {[%clk 0:00:17.6]} 45... Kf3 {[%clk 0:00:34.3]} 46.
c5 {[%clk 0:00:17.8]} 46... Ke2 {[%clk 0:00:34]} 47. Rh1 {[%clk 0:00:18.4]}
47... f1=Q {[%clk 0:00:33.8]} 48. Rxf1 {[%clk 0:00:19]} 48... Kxf1 {[%clk
0:00:34.1]} 49. c6 {[%clk 0:00:19.9]} 49... e4 {[%clk 0:00:34]} 50. c7 {[%clk
0:00:20.6]} 50... e3 {[%clk 0:00:34.1]} 51. b5 {[%clk 0:00:21.5]} 51... e2
{[%clk 0:00:33.8]} 52. b6 {[%clk 0:00:22.4]} 52... e1=Q {[%clk 0:00:34.1]} 53.
b7 {[%clk 0:00:23.3]} 53... Qa5+ {[%clk 0:00:27.6]} 54. Kc6 {[%clk 0:00:23.4]}
54... Qxc7+ {[%clk 0:00:26.7]} 55. Kxc7 {[%clk 0:00:23.7]} 55... f4 {[%clk
0:00:26.6]} 0-1

[Event "Late-Titled-Tuesday-Blitz-October-24-2023"]
[Site "Chess.com"]
[Date "2023.10.24"]
[Round "1"]
[White "mr_gustavo"]
[Black "bylavochka"]
[Result "1-0"]
[WhiteElo "2648"]
[BlackElo "2338"]
[TimeControl "180+1"]
[EndTime "14:07:20 PDT"]
[Termination "mr_gustavo won on time"]

1. Nf3 {[%clk 0:02:58.5]} 1... Nf6 {[%clk 0:02:55.1]} 2. d4 {[%clk 0:02:49]}
2... g6 {[%clk 0:02:52.4]} 3. Nbd2 {[%clk 0:02:48.3]} 3... d5 {[%clk 0:02:50.7]}
4. b4 {[%clk 0:02:48.3]} 4... Bg7 {[%clk 0:02:47.1]} 5. e3 {[%clk 0:02:47.9]}
5... O-O {[%clk 0:02:46.8]} 6. Bb2 {[%clk 0:02:47.3]} 6... a5 {[%clk 0:02:38.6]}
7. b5 {[%clk 0:02:47.4]} 7... a4 {[%clk 0:02:36.9]} 8. Ba3 {[%clk 0:02:47.3]}
8... Re8 {[%clk 0:02:33.3]} 9. c4 {[%clk 0:02:47.2]} 9... Nbd7 {[%clk
0:02:26.5]} 10. Be2 {[%clk 0:02:42.9]} 10... e5 {[%clk 0:02:14.3]} 11. dxe5
{[%clk 0:02:42.2]} 11... Nxe5 {[%clk 0:01:57.7]} 12. Nxe5 {[%clk 0:02:42.3]}
12... Rxe5 {[%clk 0:01:58.6]} 13. Nf3 {[%clk 0:02:41.2]} 13... Re8 {[%clk
0:01:53.4]} 14. Bb2 {[%clk 0:02:41]} 14... a3 {[%clk 0:01:48.9]} 15. Bd4 {[%clk
0:02:34.4]} 15... dxc4 {[%clk 0:01:45.6]} 16. Bxc4 {[%clk 0:02:32.5]} 16... Be6
{[%clk 0:01:40.7]} 17. Bxe6 {[%clk 0:02:32]} 17... Rxe6 {[%clk 0:01:41.6]} 18.
O-O {[%clk 0:02:32.1]} 18... Ne4 {[%clk 0:01:26]} 19. Qc2 {[%clk 0:02:27.7]}
19... c5 {[%clk 0:01:05.6]} 20. bxc6 {[%clk 0:02:24.1]} 20... bxc6 {[%clk
0:01:04]} 21. Rfd1 {[%clk 0:02:21.9]} 21... Qa5 {[%clk 0:00:57.6]} 22. Bxg7
{[%clk 0:02:21.5]} 22... Kxg7 {[%clk 0:00:55.3]} 23. Nd4 {[%clk 0:02:21.9]}
23... Ree8 {[%clk 0:00:43.4]} 24. Nxc6 {[%clk 0:02:20.9]} 24... Qc7 {[%clk
0:00:34.8]} 25. Rac1 {[%clk 0:02:20.8]} 25... Rac8 {[%clk 0:00:30]} 26. Qb3
{[%clk 0:02:11.6]} 26... Re6 {[%clk 0:00:26.3]} 27. f3 {[%clk 0:01:40.1]} 27...
Rxc6 {[%clk 0:00:23]} 28. Rxc6 {[%clk 0:01:38.8]} 28... Qxc6 {[%clk 0:00:22]}
29. fxe4 {[%clk 0:01:39.4]} 29... Qxe4 {[%clk 0:00:20.8]} 30. Rf1 {[%clk
0:01:29]} 30... f5 {[%clk 0:00:16.4]} 31. h3 {[%clk 0:01:14.7]} 31... Rc2 {[%clk
0:00:16.2]} 32. Rf2 {[%clk 0:01:13.2]} 32... Rxf2 {[%clk 0:00:08.2]} 33. Kxf2
{[%clk 0:01:13.4]} 33... Qe7 {[%clk 0:00:08.6]} 34. Qc3+ {[%clk 0:01:13]} 34...
Kf7 {[%clk 0:00:06.1]} 35. Qc4+ {[%clk 0:01:11.7]} 35... Kf6 {[%clk 0:00:06.4]}
36. Qd4+ {[%clk 0:01:11.9]} 36... Qe5 {[%clk 0:00:05.4]} 37. Qb6+ {[%clk
0:01:11.7]} 37... Kg5 {[%clk 0:00:05.7]} 38. Qd8+ {[%clk 0:01:00.7]} 38... Kh6
{[%clk 0:00:05.8]} 39. Qf8+ {[%clk 0:01:00.1]} 39... Qg7 {[%clk 0:00:03.7]} 40.
Qxa3 {[%clk 0:01:00.2]} 40... Qe5 {[%clk 0:00:02.3]} 41. Qf8+ {[%clk 0:01:00.2]}
41... Kh5 {[%clk 0:00:02.5]} 42. Qb4 {[%clk 0:00:46.1]} 42... g5 {[%clk
0:00:02.7]} 43. a4 {[%clk 0:00:44.5]} 43... f4 {[%clk 0:00:02.9]} 44. exf4
{[%clk 0:00:43.7]} 44... gxf4 {[%clk 0:00:03.8]} 45. Qb3 {[%clk 0:00:38.4]}
45... Kg6 {[%clk 0:00:03.4]} 46. Kg1 {[%clk 0:00:35.3]} 46... Kf5 {[%clk
0:00:01.4]} 47. Qc2+ {[%clk 0:00:33.3]} 1-0

[Event "Late-Titled-Tuesday-Blitz-October-24-2023"]
[Site "Chess.com"]
[Date "2023.10.24"]
[Round "1"]
[White "weakandslowchess"]
[Black "jaskol95"]
[Result "0-1"]
[WhiteElo "2021"]
[BlackElo "2546"]
[TimeControl "180+1"]
[EndTime "14:07:23 PDT"]
[Termination "jaskol95 won by resignation"]

1. Nf3 {[%clk 0:02:56.2]} 1... d5 {[%clk 0:02:59.2]} 2. g3 {[%clk 0:02:56.3]}
2... Nd7 {[%clk 0:02:58.7]} 3. Bg2 {[%clk 0:02:56.9]} 3... e5 {[%clk 0:02:59]}
4. d4 {[%clk 0:02:56.5]} 4... e4 {[%clk 0:02:58.5]} 5. Nfd2 {[%clk 0:02:56.7]}
5... f5 {[%clk 0:02:53.3]} 6. O-O {[%clk 0:02:56.3]} 6... Ngf6 {[%clk 0:02:53]}
7. e3 {[%clk 0:02:56.1]} 7... c6 {[%clk 0:02:50.4]} 8. c4 {[%clk 0:02:56.5]}
8... Be7 {[%clk 0:02:47.2]} 9. Nc3 {[%clk 0:02:56.8]} 9... O-O {[%clk
0:02:37.7]} 10. Qb3 {[%clk 0:02:48.6]} 10... Qb6 {[%clk 0:02:36.4]} 11. cxd5
{[%clk 0:02:46.1]} 11... Qxb3 {[%clk 0:02:36.3]} 12. Nxb3 {[%clk 0:02:45.3]}
12... cxd5 {[%clk 0:02:35.3]} 13. Nb5 {[%clk 0:02:41.9]} 13... Nb6 {[%clk
0:02:10.5]} 14. a4 {[%clk 0:02:14.6]} 14... Bd7 {[%clk 0:02:06]} 15. Nc3 {[%clk
0:01:59.2]} 15... Nc4 {[%clk 0:01:54.8]} 16. Nd2 {[%clk 0:01:56.8]} 16... Rac8
{[%clk 0:01:49.9]} 17. Nxc4 {[%clk 0:01:55.1]} 17... Rxc4 {[%clk 0:01:48.8]} 18.
Bd2 {[%clk 0:01:53.8]} 18... Rfc8 {[%clk 0:01:46.6]} 19. Rfb1 {[%clk 0:01:52.5]}
19... a6 {[%clk 0:01:15.2]} 20. Bf1 {[%clk 0:01:45.6]} 20... R4c7 {[%clk
0:01:14.6]} 21. Rc1 {[%clk 0:01:28.8]} 21... Be6 {[%clk 0:01:03]} 22. Ne2 {[%clk
0:01:18.5]} 22... g5 {[%clk 0:01:00.1]} 23. Rxc7 {[%clk 0:01:13.9]} 23... Rxc7
{[%clk 0:01:00.5]} 24. Rc1 {[%clk 0:01:13.8]} 24... Rxc1 {[%clk 0:01:00.7]} 25.
Nxc1 {[%clk 0:01:11.8]} 25... Kf7 {[%clk 0:00:58]} 26. b4 {[%clk 0:01:08.2]}
26... Bd7 {[%clk 0:00:54.4]} 27. b5 {[%clk 0:01:06.1]} 27... axb5 {[%clk
0:00:52.4]} 28. axb5 {[%clk 0:01:05.6]} 28... Ne8 {[%clk 0:00:48.6]} 29. Nb3
{[%clk 0:00:58.5]} 29... Nc7 {[%clk 0:00:35.5]} 30. b6 {[%clk 0:00:55.8]} 30...
Na8 {[%clk 0:00:32.7]} 31. Na5 {[%clk 0:00:51.6]} 31... Bc8 {[%clk 0:00:21.2]}
32. Ba6 {[%clk 0:00:28.4]} 32... bxa6 {[%clk 0:00:21.3]} 33. b7 {[%clk
0:00:28.1]} 33... Bxb7 {[%clk 0:00:21.7]} 34. Nxb7 {[%clk 0:00:26.7]} 34... Ke6
{[%clk 0:00:20.5]} 35. Kf1 {[%clk 0:00:19.8]} 35... Kd7 {[%clk 0:00:20.3]} 36.
Ke1 {[%clk 0:00:19.2]} 36... Kc6 {[%clk 0:00:20.6]} 37. Na5+ {[%clk 0:00:18.3]}
37... Kb5 {[%clk 0:00:21.2]} 38. Kd1 {[%clk 0:00:17.8]} 38... Nb6 {[%clk
0:00:19.6]} 39. Kc2 {[%clk 0:00:16.6]} 39... Nc4 {[%clk 0:00:19.7]} 40. Bc3
{[%clk 0:00:16]} 40... Nxa5 {[%clk 0:00:19.7]} 41. Bxa5 {[%clk 0:00:14.9]} 41...
Kxa5 {[%clk 0:00:19.9]} 42. h4 {[%clk 0:00:12]} 42... gxh4 {[%clk 0:00:19.4]}
43. gxh4 {[%clk 0:00:12.9]} 43... Bxh4 {[%clk 0:00:19.5]} 0-1

[Event "Late-Titled-Tuesday-Blitz-October-24-2023"]
[Site "Chess.com"]
[Date "2023.10.24"]
[Round "1"]
[White "sari07"]
[Black "sergeikim"]
[Result "0-1"]
[WhiteElo "2259"]
[BlackElo "2604"]
[TimeControl "180+1"]
[EndTime "14:07:26 PDT"]
[Termination "sergeikim won on time"]

1. Nf3 {[%clk 0:03:00.9]} 1... Nf6 {[%clk 0:02:58.9]} 2. c4 {[%clk 0:03:00.3]}
2... g6 {[%clk 0:02:58.5]} 3. Nc3 {[%clk 0:02:59.5]} 3... Bg7 {[%clk 0:02:58.5]}
4. e4 {[%clk 0:02:59.2]} 4... d6 {[%clk 0:02:58.7]} 5. d4 {[%clk 0:02:58.6]}
5... O-O {[%clk 0:02:58.7]} 6. Be2 {[%clk 0:02:58.4]} 6... e5 {[%clk 0:02:58.7]}
7. O-O {[%clk 0:02:58]} 7... exd4 {[%clk 0:02:58.7]} 8. Nxd4 {[%clk 0:02:57.2]}
8... Re8 {[%clk 0:02:59]} 9. f3 {[%clk 0:02:55.8]} 9... Nbd7 {[%clk 0:02:59.1]}
10. Nc2 {[%clk 0:02:50.3]} 10... Nc5 {[%clk 0:02:56.1]} 11. b4 {[%clk
0:02:35.7]} 11... Ne6 {[%clk 0:02:54.7]} 12. Qd3 {[%clk 0:02:35.4]} 12... Nd7
{[%clk 0:02:53.3]} 13. f4 {[%clk 0:02:19.5]} 13... a5 {[%clk 0:02:48.7]} 14. a3
{[%clk 0:02:18]} 14... axb4 {[%clk 0:02:45.4]} 15. axb4 {[%clk 0:02:18.9]} 15...
Rxa1 {[%clk 0:02:44.2]} 16. Nxa1 {[%clk 0:02:19.8]} 16... c6 {[%clk 0:02:42.6]}
17. Be3 {[%clk 0:02:10.4]} 17... Qf6 {[%clk 0:02:38.8]} 18. Na4 {[%clk
0:01:36.3]} 18... Nd4 {[%clk 0:02:25.7]} 19. Bd1 {[%clk 0:01:12.9]} 19... b5
{[%clk 0:02:21]} 20. Nc3 {[%clk 0:01:01.6]} 20... Ba6 {[%clk 0:02:10.6]} 21. c5
{[%clk 0:00:57]} 21... dxc5 {[%clk 0:02:08.6]} 22. e5 {[%clk 0:00:55.9]} 22...
Qe7 {[%clk 0:02:01.1]} 23. Bxd4 {[%clk 0:00:45.6]} 23... cxd4 {[%clk 0:02:00.3]}
24. Qxd4 {[%clk 0:00:46.5]} 24... Qd8 {[%clk 0:01:41.6]} 25. Nb3 {[%clk
0:00:36.1]} 25... f6 {[%clk 0:01:29.7]} 26. e6 {[%clk 0:00:25.6]} 26... Nf8
{[%clk 0:01:28.5]} 27. Qxd8 {[%clk 0:00:24.9]} 27... Rxd8 {[%clk 0:01:28.6]} 28.
e7 {[%clk 0:00:25.8]} 28... Re8 {[%clk 0:01:29.2]} 29. exf8=Q+ {[%clk
0:00:26.3]} 29... Bxf8 {[%clk 0:01:29.6]} 30. Nc5 {[%clk 0:00:24.7]} 30... Bxc5+
{[%clk 0:01:28.6]} 31. bxc5 {[%clk 0:00:25.6]} 31... b4 {[%clk 0:01:28]} 32.
Bb3+ {[%clk 0:00:23.3]} 32... Kf8 {[%clk 0:01:23.8]} 33. Ra1 {[%clk 0:00:22.9]}
33... Bd3 {[%clk 0:01:09.9]} 34. Na4 {[%clk 0:00:15.7]} 34... Re2 {[%clk
0:01:03.5]} 35. Nb6 {[%clk 0:00:14.2]} 35... Be4 {[%clk 0:01:02.5]} 36. Ra8+
{[%clk 0:00:09.9]} 36... Kg7 {[%clk 0:00:58.2]} 37. Ra7+ {[%clk 0:00:10.4]}
37... Kh6 {[%clk 0:00:57.3]} 38. Nd7 {[%clk 0:00:11.3]} 38... Rxg2+ {[%clk
0:00:52.9]} 39. Kf1 {[%clk 0:00:11.3]} 39... Rb2 {[%clk 0:00:45.5]} 40. Nf8
{[%clk 0:00:10.5]} 40... g5 {[%clk 0:00:45.2]} 41. Bg8 {[%clk 0:00:07.6]} 41...
gxf4 {[%clk 0:00:39.7]} 42. h4 {[%clk 0:00:06.4]} 42... Bd3+ {[%clk 0:00:28]}
43. Ke1 {[%clk 0:00:04.3]} 43... f3 {[%clk 0:00:23.9]} 0-1